bitfinex/quotes_BTCUSD_20240611
["timestamp","ask_amount","ask_price","bid_price","bid_amount"]
[1718071305911,0.00859,68651.0,68642.0,0.0192]
[1718071306282,0.1,68659.0,68646.0,0.145673]
[1718071306493,0.1,68659.0,68647.0,0.24431993]
[1718071306917,0.00859,68660.0,68647.0,1.31973993]
[1718071307390,0.01903164,68667.0,68653.0,0.15]
[1718071307598,0.31903164,68669.0,68658.0,0.145648]
[1718071307807,0.1,68669.0,68659.0,0.14431993]
[1718071308022,0.1,68669.0,68660.0,0.1]
[1718071308246,0.50067464,68679.0,68661.0,0.14431993]
[1718071308247,0.21903164,68675.0,68661.0,0.14431993]
[1718071308459,0.21903164,68675.0,68662.0,0.1]
[1718071308663,0.21903164,68675.0,68663.0,0.14431993]
[1718071308867,0.21903164,68675.0,68664.0,0.1]
[1718071309074,0.07215996,68672.0,68665.0,0.14431993]
[1718071309284,0.07215996,68672.0,68666.0,0.1]
[1718071309489,0.07215996,68672.0,68666.0,0.18333256]
[1718071309490,0.01903164,68669.0,68666.0,0.18333256]
[1718071309706,0.21903164,68670.0,68666.0,0.14417301]
[1718071309876,0.21903164,68671.0,68666.0,0.14417301]
[1718071310079,0.0911916,68672.0,68666.0,0.1]
[1718071310719,0.2911916,68672.0,68666.0,0.04272857]
[1718071310943,0.21903164,68668.0,68666.0,0.1]
[1718071311139,0.01903164,68669.0,68662.0,0.1]
[1718071311386,0.01903164,68669.0,68663.0,0.15]
[1718071311589,0.21903164,68671.0,68664.0,0.1]
[1718071311793,0.0911916,68669.0,68664.0,0.18208325]
[1718071311999,0.01903164,68672.0,68665.0,0.15]
[1718071312206,0.1,68676.0,68665.0,0.15]
[1718071312207,0.21903164,68675.0,68666.0,0.1]
[1718071312429,0.21903164,68675.0,68666.0,0.18208325]
[1718071312628,0.21903164,68675.0,68666.0,2.466688]
[1718071312840,0.21903164,68675.0,68667.0,0.15]
[1718071313048,0.21903164,68675.0,68668.0,0.1]
[1718071313671,0.21903164,68674.0,68669.0,0.945886]
[1718071313896,0.21903164,68675.0,68670.0,0.1]
[1718071314312,0.2298816,68679.0,68670.0,0.1]
[1718071314526,0.2298816,68679.0,68671.0,0.741574]
[1718071314527,0.09841468,68675.0,68671.0,0.741574]
[1718071314789,0.09841468,68678.0,68672.0,0.1]
[1718071315017,0.09841468,68678.0,68671.0,0.893666]
[1718071315226,0.09841468,68678.0,68672.0,0.1]
[1718071315439,0.09841468,68681.0,68672.0,0.1]
[1718071315865,0.09841468,68681.0,68672.0,1.165908]
[1718071316118,0.09841468,68681.0,68672.0,0.1]
[1718071316351,0.09841468,68681.0,68670.0,0.1]
[1718071316562,0.09841468,68681.0,68667.0,0.1]
[1718071316770,0.09841468,68681.0,68673.0,0.448223]
[1718071316977,0.09841468,68681.0,68674.0,0.1]
[1718071317441,0.09841468,68681.0,68674.0,0.404596]
[1718071317662,0.3194,68684.0,68674.0,0.1]
[1718071317663,0.09841468,68678.0,68674.0,0.1]
[1718071317877,0.09841468,68681.0,68674.0,0.1]
[1718071318084,0.09841468,68681.0,68669.0,0.1]
[1718071318295,0.09841468,68681.0,68668.0,0.02]
[1718071318514,0.09841468,68681.0,68669.0,0.02]
[1718071318743,0.09841468,68681.0,68669.0,0.15]
[1718071318959,0.09841468,68681.0,68670.0,0.1]
[1718071319168,0.08841468,68681.0,68670.0,0.1]
[1718071319570,0.08841468,68681.0,68671.0,1.591703]
[1718071319776,0.08841468,68681.0,68672.0,0.1]
[1718071320413,0.08841468,68681.0,68673.0,0.60152]
[1718071320591,0.08841468,68681.0,68674.0,0.1]
[1718071321688,0.08841468,68681.0,68666.0,0.1]
[1718071322079,0.08841468,68681.0,68675.0,0.346624]
[1718071322344,0.08841468,68681.0,68676.0,0.1]
[1718071322645,0.08841468,68681.0,68666.0,0.1]
[1718071322780,0.08841468,68681.0,68667.0,0.02]
[1718071322985,0.08841468,68681.0,68669.0,0.15]
[1718071323626,0.08841468,68681.0,68670.0,1.864288]
[1718071324086,0.3194,68684.0,68671.0,0.02]
[1718071324306,0.3194,68684.0,68670.0,0.24431993]
[1718071324511,0.3194,68684.0,68671.0,0.15]
[1718071324677,0.3194,68684.0,68672.0,0.1]
[1718071324894,1.2736,68683.0,68672.0,0.24431993]
[1718071325048,1.2736,68683.0,68675.0,0.02]
[1718071325475,1.2736,68683.0,68679.0,0.02]
[1718071325850,1.2736,68683.0,68682.0,0.365598]
[1718071325851,1.22003824,68683.0,68682.0,0.365598]
[1718071325978,1.11760824,68695.0,68689.0,0.02]
[1718071326200,1.11760824,68695.0,68680.0,0.0192]
[1718071326201,1.12619824,68696.0,68693.0,0.02]
[1718071326432,1.12619824,68696.0,68685.0,0.1]
[1718071326433,1.09062214,68705.0,68701.0,0.02]
[1718071326670,1.08976214,68705.0,68704.0,0.02]
[1718071326885,0.00859,68708.0,68705.0,0.165549]
[1718071326886,1.08976214,68707.0,68705.0,0.165549]
[1718071327105,1.08057617,68707.0,68706.0,0.02]
[1718071327333,0.98211826,68707.0,68706.0,0.24431993]
[1718071327552,0.95902624,68707.0,68706.0,0.1]
[1718071327758,0.95647624,68707.0,68706.0,0.18803775]
[1718071327961,0.89529624,68707.0,68706.0,0.14021225]
[1718071328151,0.89529624,68707.0,68706.0,0.14171333]
[1718071328369,0.89379624,68707.0,68698.0,0.145563]
[1718071328590,0.89379624,68707.0,68697.0,0.02]
[1718071328591,0.89379624,68707.0,68706.0,0.14431993]
[1718071328798,0.89379624,68707.0,68706.0,0.24431993]
[1718071329007,0.89379624,68707.0,68706.0,0.30603326]
[1718071329219,0.87679624,68707.0,68706.0,0.39431993]
[1718071329622,0.8296206,68707.0,68706.0,0.45603326]
[1718071329836,0.82088787,68707.0,68706.0,0.1]
[1718071330089,0.82088787,68707.0,68695.0,0.1]
[1718071330382,0.07215996,68706.0,68700.0,0.15]
[1718071330500,0.4731,68705.0,68701.0,0.1]
[1718071330729,0.08841468,68700.0,68694.0,0.7]
[1718071331131,0.08841468,68701.0,68694.0,0.7]
[1718071331349,0.08841468,68696.0,68694.0,0.7]
[1718071331556,0.08841468,68695.0,68694.0,0.7]
[1718071331985,0.82088787,68704.0,68694.0,0.7]
[1718071332204,0.08841468,68700.0,68694.0,0.7]
[1718071332414,0.08841468,68695.0,68694.0,0.7]
[1718071332836,0.08841468,68696.0,68694.0,0.7]
[1718071333054,0.08841468,68696.0,68695.0,0.1]
[1718071333254,0.08841468,68698.0,68695.0,0.1]
[1718071333479,0.08841468,68707.0,68689.0,0.01702354]
[1718071333684,0.08841468,68701.0,68683.0,0.1]
[1718071333885,0.16057464,68697.0,68687.0,0.15]
[1718071334092,0.02,68696.0,68688.0,0.1]
[1718071334323,0.16057464,68697.0,68688.0,0.1]
[1718071334557,0.08841468,68697.0,68688.0,0.1]
[1718071334782,0.82088787,68703.0,68688.0,0.1]
[1718071335011,0.82088787,68703.0,68689.0,0.14431993]
[1718071335258,0.82088787,68703.0,68690.0,0.1]
[1718071335695,0.82088787,68703.0,68697.0,0.02]
[1718071335906,0.82088787,68703.0,68698.0,0.14431993]
[1718071335907,0.73847787,68703.0,68698.0,0.14431993]
[1718071336122,0.73847787,68703.0,68702.0,0.02]
[1718071336336,0.43295979,68715.0,68702.0,0.2815348]
[1718071336541,0.00857,68718.0,68707.0,0.02]
[1718071336745,0.00857,68718.0,68710.0,0.02]
[1718071336957,0.00857,68718.0,68705.0,0.13721487]
[1718071336958,0.00857,68718.0,68711.0,0.14431993]
[1718071337169,0.00857,68718.0,68712.0,0.1]
[1718071337381,0.00857,68718.0,68713.0,0.14431993]
[1718071337599,0.00859,68729.0,68719.0,0.02]
[1718071337892,0.00859,68729.0,68724.0,0.02]
[1718071338137,0.00859,68729.0,68724.0,0.16431993]
[1718071338341,0.00859,68729.0,68728.0,0.02]
[1718071338553,0.0174776,68733.0,68725.0,2.708304]
[1718071338755,0.00861,68736.0,68726.0,0.03721541]
[1718071338953,0.00361,68736.0,68726.0,1.42127341]
[1718071339160,0.00361,68736.0,68727.0,0.13721541]
[1718071339407,0.00361,68736.0,68729.0,0.02]
[1718071339615,0.00361,68736.0,68728.0,0.01]
[1718071339932,0.00361,68736.0,68730.0,1.45785]
[1718071340139,0.00361,68736.0,68733.0,0.02]
[1718071340357,0.00361,68736.0,68731.0,0.15721151]
[1718071341133,0.00859,68746.0,68737.0,0.145481]
[1718071341332,0.00859,68746.0,68738.0,0.24431993]
[1718071341536,0.00859,68746.0,68741.0,0.02]
[1718071341719,0.00552233,68750.0,68742.0,0.16431993]
[1718071341936,0.00552233,68750.0,68747.0,0.02]
[1718071342171,0.00861,68758.0,68749.0,0.02]
[1718071342378,0.00687001,68758.0,68750.0,0.14431993]
[1718071342596,0.3174,68770.0,68754.0,0.02]
[1718071342808,0.46607,68774.0,68754.0,0.02]
[1718071342809,0.43295979,68761.0,68755.0,0.45116754]
[1718071343009,0.5370586,68774.0,68756.0,0.1]
[1718071343219,0.5370586,68774.0,68757.0,0.14431993]
[1718071343428,0.5370586,68774.0,68758.0,0.1]
[1718071343635,0.46607,68774.0,68759.0,0.14431993]
[1718071343843,0.00857,68774.0,68763.0,0.02]
[1718071344057,0.00857,68774.0,68764.0,0.16431993]
[1718071344256,0.00857,68774.0,68765.0,0.1]
[1718071344475,0.00857,68774.0,68766.0,0.16431993]
[1718071344685,0.8163,68788.0,68767.0,0.12]
[1718071344890,0.8163,68788.0,68770.0,0.17]
[1718071345096,0.52394839,68782.0,68771.0,0.1]
[1718071345330,0.07215996,68779.0,68771.0,0.1]
[1718071345554,0.07215996,68772.0,68771.0,0.1]
[1718071345793,0.0709886,68774.0,68771.0,0.1]
[1718071346007,0.0709886,68776.0,68771.0,0.1]
[1718071346211,0.02,68773.0,68757.0,0.1]
[1718071346420,0.8163,68788.0,68774.0,0.1]
[1718071346667,0.86052795,68822.0,68767.0,0.02]
[1718071346668,0.01695683,68810.0,68780.0,0.07215996]
[1718071346896,0.04205008,68826.0,68780.0,0.07215996]
[1718071346897,0.02141536,68850.0,68799.0,0.1]
[1718071347118,0.10512522,68862.0,68788.0,0.01304317]
[1718071347119,0.058112,68869.0,68851.0,0.145241]
[1718071347342,0.058112,68869.0,68865.0,0.00304317]
[1718071347561,0.4933,68881.0,68857.0,0.1]
[1718071347792,0.01,68881.0,68871.0,0.14431993]
[1718071348041,0.43295979,68887.0,68872.0,0.24431993]
[1718071348042,0.01,68873.0,68872.0,0.24431993]
[1718071348218,0.01,68873.0,68852.0,0.01073805]
[1718071348219,0.00608634,68873.0,68852.0,0.01073805]
[1718071348468,0.3158,68880.0,68836.0,0.1234989]
[1718071348469,0.1,68861.0,68836.0,0.1234989]
[1718071348673,0.5933,68872.0,68825.0,0.43295979]
[1718071348674,0.00608634,68847.0,68829.0,0.1234989]
[1718071348894,0.4752,68846.0,68830.0,0.14431993]
[1718071349108,0.4752,68846.0,68800.0,0.01]
[1718071349109,0.1,68834.0,68815.0,8e-05]
[1718071349328,0.07215996,68843.0,68801.0,0.1234989]
[1718071349329,0.3041,68823.0,68801.0,0.1234989]
[1718071349525,0.4041,68823.0,68819.0,0.15]
[1718071349735,0.10608634,68820.0,68819.0,0.15]
[1718071350113,0.1,68804.0,68803.0,8e-05]
[1718071350355,0.1,68794.0,68780.0,0.43295979]
[1718071350583,0.92701993,68804.0,68780.0,0.43295979]
[1718071350584,0.1,68790.0,68780.0,0.43295979]
[1718071350805,0.1,68797.0,68781.0,0.14431993]
[1718071351214,0.1,68797.0,68792.0,0.00891366]
[1718071351422,0.7827,68804.0,68793.0,0.14431993]
[1718071351626,0.17215996,68801.0,68791.0,0.00891366]
[1718071351801,0.7827,68804.0,68772.0,0.1]
[1718071351802,0.1,68798.0,68790.0,0.00891366]
[1718071352034,0.1,68798.0,68787.0,0.00891366]
[1718071352246,0.1,68798.0,68784.0,0.00891366]
[1718071352432,0.1,68798.0,68788.0,0.00891366]
[1718071352648,0.098,68798.0,68788.0,0.00891366]
[1718071352853,0.7827,68804.0,68789.0,0.14431993]
[1718071352854,0.098,68803.0,68789.0,0.14431993]
[1718071353055,0.098,68803.0,68773.0,0.1]
[1718071353056,0.098,68798.0,68787.0,0.00891366]
[1718071353287,0.098,68798.0,68789.0,0.00891366]
[1718071353445,0.098,68800.0,68791.0,0.00891366]
[1718071353656,0.098,68800.0,68788.0,0.10891366]
[1718071354241,0.098,68800.0,68790.0,0.00891366]
[1718071354501,0.098,68800.0,68788.0,0.1]
[1718071354700,0.07215996,68803.0,68788.0,0.1]
[1718071354701,0.098,68799.0,68788.0,0.1]
[1718071354924,0.098,68799.0,68788.0,0.00891366]
[1718071355293,0.098,68800.0,68789.0,0.00891366]
[1718071355514,0.098,68800.0,68790.0,0.00891366]
[1718071355730,0.098,68803.0,68790.0,0.15323359]
[1718071355925,0.098,68803.0,68795.0,0.00891366]
[1718071356177,0.17015996,68803.0,68791.0,0.1]
[1718071356373,0.17015996,68796.0,68791.0,0.1]
[1718071356821,0.098,68797.0,68791.0,0.1]
[1718071357288,0.098,68797.0,68767.0,0.11036042]
[1718071357289,0.098,68808.0,68792.0,0.14431993]
[1718071357486,0.098,68807.0,68792.0,0.14431993]
[1718071357655,0.098,68807.0,68793.0,0.1]
[1718071357932,0.098,68807.0,68794.0,0.14431993]
[1718071358202,0.4763,68811.0,68795.0,0.1]
[1718071358412,0.098,68815.0,68806.0,0.00891366]
[1718071358661,0.098,68815.0,68796.0,0.14431993]
[1718071358662,0.098,68815.0,68804.0,0.00891366]
[1718071358864,0.4763,68821.0,68797.0,0.1]
[1718071358865,0.07215996,68807.0,68797.0,0.1]
[1718071359089,0.07215996,68807.0,68798.0,0.14431993]
[1718071359300,0.07215996,68807.0,68797.0,0.10891366]
[1718071359301,0.17015996,68807.0,68799.0,0.1]
[1718071359518,0.17015996,68807.0,68797.0,0.1]
[1718071360520,0.17015996,68807.0,68792.0,0.00891366]
[1718071360729,0.17015996,68807.0,68782.0,0.43295979]
[1718071360730,0.07215996,68800.0,68782.0,0.00891366]
[1718071361005,0.07215996,68800.0,68778.0,0.3632]
[1718071361006,0.07215996,68793.0,68783.0,0.14431993]
[1718071361208,0.098,68797.0,68785.0,0.00891366]
[1718071361360,0.098,68799.0,68785.0,0.00891366]
[1718071361564,0.098,68808.0,68799.0,0.00891366]
[1718071361765,0.098,68808.0,68794.0,0.00891366]
[1718071361968,0.098,68808.0,68795.0,0.15323359]
[1718071362230,0.098,68811.0,68797.0,0.00891366]
[1718071362450,0.07215996,68824.0,68807.0,0.005]
[1718071362451,0.098,68816.0,68807.0,0.005]
[1718071362660,0.098,68816.0,68805.0,0.00891366]
[1718071363312,0.098,68816.0,68801.0,0.1]
[1718071363313,0.098,68808.0,68801.0,0.1]
[1718071363748,0.098,68811.0,68799.0,0.00891366]
[1718071363902,0.098,68811.0,68805.0,0.00891366]
[1718071364112,0.2,68828.0,68812.0,0.00891366]
[1718071364113,0.098,68822.0,68812.0,0.00891366]
[1718071364270,0.098,68822.0,68813.0,0.00891366]
[1718071364891,0.098,68822.0,68816.0,0.00891366]
[1718071365115,0.098,68822.0,68814.0,0.00891366]
[1718071365315,0.098,68822.0,68813.0,0.00891366]
[1718071365520,0.17015996,68822.0,68813.0,0.00891366]
[1718071365743,0.17015996,68822.0,68812.0,0.00891366]
[1718071365947,0.17015996,68822.0,68813.0,0.00891366]
[1718071366157,0.098,68822.0,68817.0,0.00891366]
[1718071366530,0.098,68826.0,68817.0,0.00891366]
[1718071366746,0.098,68827.0,68819.0,0.00891366]
[1718071367172,0.098,68826.0,68818.0,0.00891366]
[1718071367609,0.098,68826.0,68819.0,0.19537144]
[1718071367768,0.07215996,68828.0,68820.0,0.1]
[1718071367947,0.07215996,68828.0,68821.0,0.19537144]
[1718071368136,0.098,68828.0,68822.0,0.1]
[1718071368346,0.4846,68829.0,68823.0,0.19537144]
[1718071368556,0.4846,68829.0,68824.0,0.1]
[1718071368764,0.098,68832.0,68827.0,0.00891366]
[1718071368965,0.098,68832.0,68828.0,0.2196161]
[1718071369221,0.098,68832.0,68829.0,0.31244077]
[1718071369425,0.098,68832.0,68829.0,0.1]
[1718071370303,0.098,68832.0,68818.0,0.058099]
[1718071370304,0.098,68832.0,68830.0,0.21538945]
[1718071370516,0.098,68832.0,68831.0,0.31538945]
[1718071370940,0.098,68835.0,68832.0,0.00891366]
[1718071371154,0.098,68836.0,68833.0,0.16597404]
[1718071371372,0.3211,68839.0,68831.0,0.1]
[1718071371373,0.098,68839.0,68838.0,0.00891366]
[1718071371602,0.4932,68845.0,68838.0,0.00891366]
[1718071371603,0.4932,68845.0,68838.0,0.16597404]
[1718071371814,0.098,68856.0,68853.0,0.00891366]
[1718071372022,0.098,68858.0,68856.0,0.00891366]
[1718071372247,0.098,68858.0,68839.0,0.24431993]
[1718071372248,0.10656,68862.0,68857.0,0.00891366]
[1718071372463,0.00856,68862.0,68860.0,0.00891366]
[1718071372665,0.00856,68862.0,68861.0,0.00891366]
[1718071372865,0.00856,68862.0,68860.0,0.00891366]
[1718071373282,0.00856,68862.0,68861.0,0.00891366]
[1718071373548,0.10656,68862.0,68861.0,0.1]
[1718071373751,0.00856,68862.0,68861.0,0.1]
[1718071373963,0.00856,68862.0,68861.0,0.10891366]
[1718071374638,0.00856,68862.0,68861.0,0.00891366]
[1718071374873,0.00856,68862.0,68861.0,0.10891366]
[1718071375325,0.00856,68862.0,68861.0,0.25323359]
[1718071375551,0.00856,68862.0,68861.0,0.10891366]
[1718071375811,0.00856,68862.0,68861.0,0.00891366]
[1718071376019,0.098,68861.0,68851.0,0.00891366]
[1718071376293,0.098,68860.0,68850.0,0.1]
[1718071376517,0.09793093,68849.0,68839.0,0.00891366]
[1718071376952,0.09793093,68849.0,68840.0,0.00891366]
[1718071377167,0.09793093,68849.0,68839.0,0.00891366]
[1718071377420,0.09793093,68845.0,68837.0,0.00891366]
[1718071377623,0.07215996,68848.0,68827.0,0.00891366]
[1718071377624,0.09793093,68842.0,68827.0,0.00891366]
[1718071377825,0.0864388,68842.0,68829.0,0.00891366]
[1718071378024,0.0864388,68842.0,68834.0,0.00891366]
[1718071378240,0.0864388,68841.0,68831.0,0.00891366]
[1718071378451,0.0864388,68839.0,68827.0,0.00891366]
[1718071378676,0.0864388,68837.0,68826.0,0.00891366]
[1718071378884,0.0864388,68836.0,68822.0,0.00891366]
[1718071379100,0.0864388,68836.0,68818.0,0.058099]
[1718071379101,0.0864388,68836.0,68826.0,0.00891366]
[1718071379731,0.4778,68840.0,68834.0,0.00891366]
[1718071379987,0.0864388,68841.0,68836.0,0.00891366]
[1718071380206,0.0864388,68841.0,68835.0,7.043e-05]
[1718071380415,0.0864388,68837.0,68835.0,7.043e-05]
[1718071380617,0.0864388,68836.0,68835.0,7.043e-05]
[1718071381031,0.23684507,68836.0,68835.0,7.043e-05]
[1718071381907,0.70064507,68836.0,68835.0,7.043e-05]
[1718071382368,1.03164507,68836.0,68835.0,7.043e-05]
[1718071382886,0.0864388,68816.0,68815.0,0.058099]
[1718071383111,0.0864388,68821.0,68814.0,0.00891366]
[1718071383350,0.0864388,68821.0,68818.0,0.012499]
[1718071383904,0.0864388,68821.0,68816.0,0.00891366]
[1718071384119,0.0864388,68815.0,68814.0,0.012499]
[1718071384347,0.0864388,68815.0,68799.0,0.14779604]
[1718071384348,0.86602514,68813.0,68791.0,0.01704614]
[1718071384569,0.0864388,68800.0,68798.0,0.00985966]
[1718071384794,0.0864388,68812.0,68800.0,0.00891366]
[1718071385029,0.0864388,68807.0,68799.0,0.00891366]
[1718071385280,0.0864388,68807.0,68801.0,0.058113]
[1718071385531,0.07215996,68812.0,68801.0,0.058113]
[1718071385532,0.0864388,68802.0,68801.0,0.058113]
[1718071385875,0.07215996,68812.0,68798.0,0.000946]
[1718071385876,0.0864388,68799.0,68798.0,0.000946]
[1718071386663,0.23075873,68799.0,68798.0,0.000946]
[1718071386838,0.0864388,68801.0,68798.0,0.000946]
[1718071387106,0.01,68806.0,68786.0,0.01]
[1718071387310,0.01,68823.0,68783.0,0.03201962]
[1718071387311,0.01,68817.0,68799.0,0.14431993]
[1718071387523,0.0864388,68810.0,68800.0,0.1]
[1718071388082,0.01,68809.0,68800.0,0.1]
[1718071388285,0.0864388,68804.0,68800.0,0.1]
[1718071388470,0.01,68811.0,68800.0,0.1]
[1718071388669,0.01,68819.0,68803.0,0.01]
[1718071388900,0.0864388,68821.0,68805.0,0.1307]
[1718071389108,0.0864388,68808.0,68806.0,0.1]
[1718071389323,0.0964388,68807.0,68806.0,0.1]
[1718071389554,0.0864388,68807.0,68806.0,0.1]
[1718071390003,0.0964388,68807.0,68806.0,0.1]
[1718071390214,0.0964388,68807.0,68797.0,0.058113]
[1718071390215,0.0964388,68798.0,68797.0,0.058113]
[1718071390429,0.0964388,68798.0,68777.0,0.08589182]
[1718071390430,0.0964388,68797.0,68781.0,0.155388]
[1718071390633,0.0864388,68794.0,68782.0,0.14431993]
[1718071390842,0.01,68793.0,68782.0,0.14431993]
[1718071391111,0.0864388,68791.0,68782.0,0.058121]
[1718071391369,0.01,68790.0,68782.0,0.058121]
[1718071391671,0.0864388,68791.0,68783.0,0.01]
[1718071391909,0.0864388,68791.0,68782.0,0.058121]
[1718071391910,0.01,68800.0,68784.0,0.00289024]
[1718071392135,0.01,68800.0,68785.0,0.14431993]
[1718071392136,0.01,68799.0,68785.0,0.14431993]
[1718071392548,0.0864388,68800.0,68787.0,0.01]
[1718071392759,0.0864388,68800.0,68788.0,0.14431993]
[1718071392984,0.0864388,68800.0,68789.0,0.1]
[1718071393423,0.0964388,68800.0,68789.0,0.1]
[1718071393621,0.0864388,68808.0,68795.0,0.01]
[1718071393834,0.01,68807.0,68796.0,0.14431993]
[1718071394069,0.0864388,68800.0,68797.0,0.1]
[1718071394305,0.0864388,68805.0,68797.0,0.1]
[1718071394722,0.07215996,68799.0,68797.0,0.1]
[1718071395146,0.07215996,68799.0,68784.0,0.05313365]
[1718071395147,0.07215996,68799.0,68786.0,0.01]
[1718071395371,0.07215996,68812.0,68787.0,0.15]
[1718071395372,0.09406916,68797.0,68787.0,0.15]
[1718071395607,0.07215996,68798.0,68782.0,0.058121]
[1718071395608,0.0864388,68783.0,68782.0,0.058121]
[1718071395837,0.09406916,68783.0,68782.0,0.058121]
[1718071396260,0.0864388,68783.0,68782.0,0.058121]
[1718071396699,0.09406916,68783.0,68782.0,0.058121]
[1718071397140,0.00763036,68773.0,68768.0,0.00017504]
[1718071397361,0.09406916,68777.0,68769.0,0.058121]
[1718071397572,0.0864388,68777.0,68769.0,0.068121]
[1718071397787,0.0864388,68777.0,68769.0,0.058121]
[1718071398001,0.0864388,68779.0,68769.0,0.058121]
[1718071398268,0.14431993,68790.0,68769.0,0.058121]
[1718071398269,0.0864388,68777.0,68769.0,0.058121]
[1718071398740,0.0864388,68780.0,68769.0,0.058121]
[1718071398970,0.0864388,68784.0,68772.0,0.01]
[1718071399180,0.0864388,68781.0,68770.0,0.11]
[1718071399409,0.0864388,68782.0,68770.0,0.24431993]
[1718071399677,0.0864388,68782.0,68770.0,0.25431993]
[1718071399881,0.0864388,68777.0,68770.0,0.1]
[1718071400092,0.0864388,68781.0,68770.0,0.1]
[1718071400301,0.4536,68791.0,68779.0,0.01]
[1718071400302,0.0864388,68787.0,68779.0,0.01]
[1718071400510,0.0864388,68787.0,68774.0,0.1]
[1718071400711,0.0864388,68787.0,68775.0,0.14431993]
[1718071400918,0.4536,68791.0,68774.0,0.11]
[1718071400919,0.0864388,68779.0,68776.0,0.1]
[1718071401133,0.4536,68791.0,68778.0,0.01]
[1718071401134,0.0864388,68784.0,68778.0,0.01]
[1718071401339,0.0864388,68784.0,68779.0,0.01]
[1718071401563,0.0864388,68792.0,68780.0,0.14431993]
[1718071401776,0.0864388,68787.0,68774.0,0.1]
[1718071401988,0.00763036,68793.0,68775.0,0.01]
[1718071401989,0.0864388,68786.0,68775.0,0.01]
[1718071402196,0.0864388,68786.0,68775.0,0.1]
[1718071402619,0.00711677,68794.0,68781.0,0.01]
[1718071402831,0.0864388,68799.0,68785.0,0.01]
[1718071403041,0.0864388,68799.0,68786.0,0.15431993]
[1718071403271,0.0864388,68799.0,68788.0,0.4801]
[1718071403730,0.0864388,68800.0,68796.0,0.01]
[1718071403947,0.0864388,68800.0,68791.0,0.01]
[1718071405240,0.0864388,68800.0,68793.0,0.01]
[1718071405663,0.0864388,68800.0,68789.0,0.1]
[1718071406137,0.07927673,68799.0,68789.0,0.1]
[1718071406355,0.00711677,68794.0,68789.0,0.1]
[1718071406566,0.0864388,68789.0,68780.0,0.04316269]
[1718071406778,0.00711677,68786.0,68785.0,0.15]
[1718071406999,0.09355557,68786.0,68785.0,0.15]
[1718071407210,0.0864388,68781.0,68770.0,0.07219269]
[1718071407435,0.0864388,68784.0,68772.0,0.01]
[1718071407649,0.0864388,68781.0,68770.0,0.17334993]
[1718071407855,0.0864388,68781.0,68770.0,0.02903]
[1718071408075,0.0864388,68778.0,68770.0,0.02903]
[1718071408283,0.0864388,68781.0,68770.0,0.04607305]
[1718071408716,0.0864388,68781.0,68770.0,0.14607305]
[1718071408928,0.0864388,68781.0,68770.0,0.15607305]
[1718071409132,0.09355557,68781.0,68770.0,0.14607305]
[1718071409347,0.00711677,68779.0,68770.0,0.14607305]
[1718071409549,0.00711677,68777.0,68770.0,0.11704305]
[1718071409760,0.00711677,68777.0,68770.0,0.01704305]
[1718071409989,0.00711677,68777.0,68769.0,0.058121]
[1718071410210,0.00711677,68777.0,68770.0,0.03720413]
[1718071410429,0.00711677,68775.0,68770.0,0.13720413]
[1718071410666,0.00711677,68772.0,68771.0,0.03720413]
[1718071410903,0.00711677,68772.0,68770.0,0.1]
[1718071411136,0.00711677,68771.0,68770.0,0.1]
[1718071411341,0.0864388,68774.0,68770.0,0.1]
[1718071411557,0.0864388,68774.0,68769.0,0.07569931]
[1718071411768,0.0864388,68775.0,68769.0,0.07569931]
[1718071411978,0.00711677,68778.0,68769.0,0.07569931]
[1718071412215,0.0864388,68780.0,68769.0,0.07569931]
[1718071412216,0.00711677,68775.0,68770.0,0.03721542]
[1718071412428,0.00711677,68775.0,68770.0,0.13721542]
[1718071412642,0.0864388,68776.0,68771.0,0.03721542]
[1718071412643,0.09355557,68776.0,68771.0,0.03721542]
[1718071412862,0.00711677,68772.0,68771.0,0.03721542]
[1718071413103,0.00711677,68772.0,68769.0,0.07569931]
[1718071413104,0.09355557,68770.0,68769.0,0.058121]
[1718071413364,0.09355557,68770.0,68750.0,0.08880867]
[1718071413365,0.09355557,68753.0,68741.0,8e-05]
[1718071413620,0.08626382,68755.0,68747.0,0.00288323]
[1718071413869,0.08626382,68768.0,68752.0,0.01]
[1718071414096,0.08626382,68768.0,68748.0,0.04011378]
[1718071414097,0.32911677,68778.0,68759.0,0.01]
[1718071414310,0.08626382,68781.0,68770.0,0.07215996]
[1718071414546,0.00711677,68775.0,68771.0,0.03721635]
[1718071414767,0.00711677,68775.0,68756.0,0.07215996]
[1718071414768,0.08626382,68770.0,68757.0,0.03721635]
[1718071415021,0.09242646,68776.0,68759.0,0.01]
[1718071415261,0.08626382,68777.0,68760.0,0.18153628]
[1718071415493,0.09242646,68777.0,68761.0,0.13721635]
[1718071415712,0.00616264,68776.0,68762.0,0.18153628]
[1718071415950,0.00616264,68769.0,68763.0,0.13721635]
[1718071416185,0.00616264,68772.0,68764.0,0.03721635]
[1718071416412,0.4854,68786.0,68766.0,0.07215996]
[1718071416413,0.00616264,68782.0,68766.0,0.07215996]
[1718071416657,0.00616264,68790.0,68773.0,0.07215996]
[1718071416885,0.08626382,68791.0,68775.0,0.01]
[1718071417119,0.08626382,68791.0,68776.0,0.18465196]
[1718071417337,0.09242646,68793.0,68777.0,0.03721376]
[1718071417540,0.09242646,68793.0,68778.0,0.14431993]
[1718071417747,0.08871602,68793.0,68779.0,0.13721376]
[1718071417966,0.08871602,68793.0,68780.0,0.18153369]
[1718071418176,0.08626382,68793.0,68781.0,0.14721376]
[1718071418382,0.08626382,68793.0,68782.0,0.18153369]
[1718071418613,0.0024522,68792.0,68783.0,0.13721376]
[1718071418849,0.0024522,68799.0,68784.0,0.18153369]
[1718071419060,0.0024522,68797.0,68785.0,0.13721376]
[1718071419274,0.08871602,68800.0,68786.0,0.18153369]
[1718071419489,0.0024522,68799.0,68787.0,0.13721376]
[1718071419700,0.0024522,68799.0,68788.0,0.18153369]